[Event "SS Manhem Chess Week 2019 Goteborg Open"]
[Site "Molnlycke kulturhus, Biblioteksgatan 2, Molnlycke, Sweden"]
[Date "2019.08.16"]
[Round "3.14"]
[White "Ottgard, Andreas"]
[Black "Troberg Eskola, Love"]
[Result "0-1"]
[TimeControl "15 minutes + 5 seconds per move from move one (Round 1 - 4) / 90 minutes + 30 seconds per move from move one (Round 5 - 8)"]
[WhiteFideId "1730592"]
[BlackFideId "1724185"]
[WhiteElo "1868"]
[BlackElo "2134"]

1. c4 {[%clk 00:15:08]} g6 {[%clk 00:15:05]} 2. g3 {[%clk 00:15:08]} Bg7 {[%clk
00:15:05]} 3. Bg2 {[%clk 00:15:12]} {[%emt 01:00:17]} e5 {[%clk 00:15:10]}
{[%emt 00:00:04]} 4. Nc3 {[%clk 00:14:36]} {[%emt 00:00:41]} Ne7 {[%clk
00:15:13]} {[%emt 00:00:02]} 5. e4 {[%clk 00:14:03]} {[%emt 00:00:38]} Nbc6
{[%clk 00:15:12]} {[%emt 00:00:07]} 6. Nge2 {[%clk 00:14:00]} {[%emt 00:00:07]}
d6 {[%clk 00:15:14]} {[%emt 00:00:03]} 7. d3 {[%clk 00:13:43]} {[%emt
00:00:21]} O-O {[%clk 00:15:13]} {[%emt 00:00:06]} 8. O-O {[%clk 00:13:42]}
{[%emt 00:00:06]} f5 {[%clk 00:15:03]} {[%emt 00:00:16]} 9. f4 {[%clk
00:13:20]} {[%emt 00:00:27]} Be6 {[%clk 00:14:44]} {[%emt 00:00:24]} 10. fxe5
{[%clk 00:12:22]} {[%emt 00:01:02]} dxe5 {[%clk 00:13:18]} {[%emt 00:01:32]} 11.
Be3 {[%clk 00:10:55]} {[%emt 00:01:32]} Nd4 {[%clk 00:12:52]} {[%emt 00:00:32]}
12. Nd5 {[%clk 00:09:02]} {[%emt 00:01:57]} Nxe2+ {[%clk 00:11:38]} {[%emt
00:01:18]} 13. Qxe2 {[%clk 00:09:03]} {[%emt 00:00:04]} Nc6 {[%clk 00:11:31]}
{[%emt 00:00:12]} 14. exf5 {[%clk 00:08:18]} {[%emt 00:00:50]} Bxf5 {[%clk
00:10:38]} {[%emt 00:00:58]} 15. Bc5 {[%clk 00:06:25]} {[%emt 00:01:57]} Nd4
{[%clk 00:09:56]} {[%emt 00:00:47]} 16. Qd2 {[%clk 00:04:42]} {[%emt 00:01:48]}
Re8 {[%clk 00:09:37]} {[%emt 00:00:23]} 17. Rae1 {[%clk 00:04:22]} {[%emt
00:00:25]} c6 {[%clk 00:09:22]} {[%emt 00:00:20]} 18. Ne3 {[%clk 00:03:54]}
{[%emt 00:00:33]} Bxd3 {[%clk 00:08:50]} {[%emt 00:00:38]} 19. Rf2 {[%clk
00:02:20]} {[%emt 00:01:38]} e4 {[%clk 00:08:33]} {[%emt 00:00:23]} 20. Kh1
{[%clk 00:01:53]} {[%emt 00:00:33]} b6 {[%clk 00:08:22]} {[%emt 00:00:16]} 21.
Bb4 {[%clk 00:01:36]} {[%emt 00:00:22]} Qd7 {[%clk 00:07:53]} {[%emt 00:00:34]}
22. Bf1 {[%clk 00:01:19]} {[%emt 00:00:21]} Bxf1 {[%clk 00:07:37]} {[%emt
00:00:20]} 23. Rexf1 {[%clk 00:01:17]} {[%emt 00:00:08]} Rad8 {[%clk 00:07:25]}
{[%emt 00:00:18]} 24. c5 {[%clk 00:00:35]} {[%emt 00:00:46]} Nf3 {[%clk
00:07:03]} {[%emt 00:00:27]} 25. Qxd7 {[%clk 00:00:27]} {[%emt 00:00:13]} Rxd7
{[%clk 00:07:06]} {[%emt 00:00:02]} 26. cxb6 {[%clk 00:00:27]} {[%emt
00:00:06]} axb6 {[%clk 00:07:10]} {[%emt 00:00:02]} 27. Bc3 {[%clk 00:00:15]}
{[%emt 00:00:16]} Bxc3 {[%clk 00:06:55]} {[%emt 00:00:19]} 28. bxc3 {[%clk
00:00:19]} {[%emt 00:00:02]} Rd3 {[%clk 00:06:58]} {[%emt 00:00:02]} 29. Re2
{[%clk 00:00:13]} {[%emt 00:00:11]} Rxc3 {[%clk 00:06:57]} {[%emt 00:00:06]} 30.
Ng4 {[%clk 00:00:11]} {[%emt 00:00:07]} Kg7 {[%clk 00:06:54]} {[%emt 00:00:08]}
31. Kg2 {[%clk 00:00:06]} {[%emt 00:00:10]} Nd4 {[%clk 00:06:41]} {[%emt
00:00:18]} 32. Ree1 {[%clk 00:00:08]} {[%emt 00:00:03]} Nf5 {[%clk 00:06:30]}
{[%emt 00:00:17]} 33. Rf4 {[%clk 00:00:07]} {[%emt 00:00:05]} h5 {[%clk
00:06:22]} {[%emt 00:00:13]} 34. Nf2 {[%clk 00:00:06]} {[%emt 00:00:06]} e3
{[%clk 00:06:16]} {[%emt 00:00:12]} 35. Ne4 {[%clk 00:00:08]} {[%emt 00:00:02]}
Rc2+ {[%clk 00:06:16]} {[%emt 00:00:04]} 36. Kg1 {[%clk 00:00:09]} {[%emt
00:00:04]} e2 {[%clk 00:06:01]} {[%emt 00:00:20]} 37. Kf2 {[%clk 00:00:08]}
{[%emt 00:00:06]} Rxa2 {[%clk 00:06:03]} {[%emt 00:00:03]} 38. Rxe2 {[%clk
00:00:11]} {[%emt 00:00:03]} Rxe2+ {[%clk 00:06:06]} {[%emt 00:00:02]} 39. Kxe2
{[%clk 00:00:13]} {[%emt 00:00:02]} Nd6 {[%clk 00:06:09]} {[%emt 00:00:02]} 40.
Kd3 {[%clk 00:00:13]} {[%emt 00:00:05]} Nxe4 {[%clk 00:06:11]} {[%emt
00:00:02]} 0-1

[Event "SS Manhem Chess Week 2019 Goteborg Open"]
[Site "Molnlycke kulturhus, Biblioteksgatan 2, Molnlycke, Sweden"]
[Date "2019.08.16"]
[Round "3.15"]
[White "Eriksson, Kristian"]
[Black "Knutsson, Hakan"]
[Result "1-0"]
[TimeControl "15 minutes + 5 seconds per move from move one (Round 1 - 4) / 90 minutes + 30 seconds per move from move one (Round 5 - 8)"]
[WhiteFideId "1705172"]
[BlackFideId "1706810"]
[WhiteElo "2113"]
[BlackElo "1848"]

1. e4 {[%clk 00:15:08]} c5 {[%clk 00:15:08]} {[%emt 00:00:03]} 2. Nc3 {[%clk
00:15:07]} {[%emt 00:00:06]} e6 {[%clk 00:15:05]} {[%emt 00:00:08]} 3. Nf3
{[%clk 00:15:10]} {[%emt 00:00:02]} Nc6 {[%clk 00:15:03]} {[%emt 00:00:07]} 4.
Bb5 {[%clk 00:14:57]} {[%emt 00:00:18]} Qc7 {[%clk 00:14:43]} {[%emt 00:00:24]}
5. O-O {[%clk 00:14:53]} {[%emt 00:00:10]} a6 {[%clk 00:14:32]} {[%emt
00:00:16]} 6. Bxc6 {[%clk 00:14:55]} {[%emt 00:00:03]} Qxc6 {[%clk 00:14:34]}
{[%emt 00:00:03]} 7. d4 {[%clk 00:14:51]} {[%emt 00:00:09]} Nf6 {[%clk
00:14:10]} {[%emt 00:00:29]} 8. d5 {[%clk 00:13:21]} {[%emt 00:01:36]} exd5
{[%clk 00:13:00]} {[%emt 00:01:15]} 9. exd5 {[%clk 00:13:21]} {[%emt 00:00:05]}
Qb6 {[%clk 00:12:00]} {[%emt 00:01:05]} 10. Re1+ {[%clk 00:13:15]} {[%emt
00:00:10]} Kd8 {[%clk 00:11:55]} {[%emt 00:00:10]} 11. Ng5 {[%clk 00:12:22]}
{[%emt 00:00:58]} Kc7 {[%clk 00:11:51]} {[%emt 00:00:10]} 12. Nxf7 {[%clk
00:12:13]} {[%emt 00:00:14]} Rg8 {[%clk 00:11:54]} {[%emt 00:00:01]} 13. Bf4+
{[%clk 00:10:34]} {[%emt 00:01:44]} d6 {[%clk 00:11:39]} {[%emt 00:00:20]} 14.
b3 {[%clk 00:09:40]} {[%emt 00:01:00]} Bd7 {[%clk 00:11:17]} {[%emt 00:00:27]}
15. a4 {[%clk 00:07:56]} {[%emt 00:01:49]} a5 {[%clk 00:11:00]} {[%emt
00:00:22]} 16. Ng5 {[%clk 00:07:25]} {[%emt 00:00:36]} h6 {[%clk 00:10:31]}
{[%emt 00:00:34]} 17. Nb5+ {[%clk 00:07:21]} {[%emt 00:00:10]} Bxb5 {[%clk
00:09:56]} {[%emt 00:00:40]} 18. Ne6+ {[%clk 00:07:24]} {[%emt 00:00:02]} Kb8
{[%clk 00:09:43]} {[%emt 00:00:17]} 19. axb5 {[%clk 00:07:26]} {[%emt
00:00:04]} g5 {[%clk 00:09:21]} {[%emt 00:00:27]} 20. Bg3 {[%clk 00:07:10]}
{[%emt 00:00:22]} Ka7 {[%clk 00:08:54]} {[%emt 00:00:32]} 21. c4 {[%clk
00:07:04]} {[%emt 00:00:11]} Nh5 {[%clk 00:08:37]} {[%emt 00:00:22]} 22. Qxh5
{[%clk 00:07:00]} {[%emt 00:00:09]} 1-0

[Event "SS Manhem Chess Week 2019 Goteborg Open"]
[Site "Molnlycke kulturhus, Biblioteksgatan 2, Molnlycke, Sweden"]
[Date "2019.08.16"]
[Round "3.16"]
[White "Hattab, Hashim"]
[Black "Pettersson, Anders"]
[Result "0-1"]
[TimeControl "15 minutes + 5 seconds per move from move one (Round 1 - 4) / 90 minutes + 30 seconds per move from move one (Round 5 - 8)"]
[WhiteFideId "1721798"]
[BlackFideId "1715143"]
[WhiteElo "1868"]
[BlackElo "2104"]

1. d4 {[%clk 00:15:08]} d5 {[%clk 00:15:08]} {[%emt 00:00:02]} 2. c4 {[%clk
00:15:11]} {[%emt 00:00:03]} e6 {[%clk 00:15:12]} {[%emt 00:00:02]} 3. cxd5
{[%clk 00:15:07]} {[%emt 00:00:09]} exd5 {[%clk 00:15:14]} {[%emt 00:00:02]} 4.
Nc3 {[%clk 00:15:09]} {[%emt 00:00:03]} c6 {[%clk 00:15:16]} {[%emt 00:00:03]}
5. Nf3 {[%clk 00:15:04]} {[%emt 00:00:09]} Bf5 {[%clk 00:15:10]} {[%emt
00:00:11]} 6. e3 {[%clk 00:14:56]} {[%emt 00:00:13]} Nf6 {[%clk 00:15:02]}
{[%emt 00:00:14]} 7. Bd3 {[%clk 00:14:56]} {[%emt 00:00:04]} Bxd3 {[%clk
00:15:04]} {[%emt 00:00:04]} 8. Qxd3 {[%clk 00:14:59]} {[%emt 00:00:02]} Bd6
{[%clk 00:14:36]} {[%emt 00:00:33]} 9. h3 {[%clk 00:14:41]} {[%emt 00:00:23]}
O-O {[%clk 00:14:33]} {[%emt 00:00:08]} 10. Ne5 {[%clk 00:14:16]} {[%emt
00:00:29]} Re8 {[%clk 00:13:45]} {[%emt 00:00:53]} 11. f4 {[%emt 00:00:06]}
Nfd7 {[%clk 00:13:36]} {[%emt 00:00:12]} 12. O-O {[%clk 00:14:20]} {[%emt
00:00:03]} f6 {[%clk 00:13:36]} {[%emt 00:00:06]} 13. Ng4 {[%clk 00:14:10]}
{[%emt 00:00:14]} Nf8 {[%clk 00:11:42]} {[%emt 00:01:59]} 14. Bd2 {[%clk
00:14:07]} {[%emt 00:00:07]} Nbd7 {[%clk 00:11:30]} {[%emt 00:00:18]} 15. Rf3
{[%clk 00:13:58]} {[%emt 00:00:14]} Nb6 {[%clk 00:10:07]} {[%emt 00:01:28]} 16.
b3 {[%clk 00:13:59]} {[%emt 00:00:03]} a5 {[%clk 00:09:49]} {[%emt 00:00:23]}
17. Rg3 {[%clk 00:14:00]} {[%emt 00:00:05]} Kh8 {[%clk 00:09:53]} 18. a4 {[%clk
00:13:12]} {[%emt 00:00:53]} Qe7 {[%clk 00:08:40]} {[%emt 00:01:18]} 19. Ne2
{[%clk 00:12:40]} {[%emt 00:00:36]} Nbd7 {[%clk 00:08:25]} {[%emt 00:00:22]} 20.
Nf2 {[%clk 00:12:36]} {[%emt 00:00:09]} Ng6 {[%clk 00:06:55]} {[%emt 00:01:35]}
21. Qf5 {[%clk 00:12:06]} {[%emt 00:00:34]} Ndf8 {[%clk 00:06:00]} {[%emt
00:01:02]} 22. Qh5 {[%clk 00:12:02]} {[%emt 00:00:07]} Qd7 {[%clk 00:05:26]}
{[%emt 00:00:38]} 23. Rg4 {[%clk 00:11:32]} {[%emt 00:00:37]} f5 {[%clk
00:04:54]} {[%emt 00:00:38]} 24. Rg5 {[%clk 00:11:19]} {[%emt 00:00:17]} Ne7
{[%clk 00:04:57]} 25. Qf7 {[%clk 00:10:54]} {[%emt 00:00:31]} g6 {[%clk
00:04:59]} {[%emt 00:00:04]} 26. Ng3 {[%clk 00:10:29]} {[%emt 00:00:30]} Qe6
{[%clk 00:04:19]} {[%emt 00:00:46]} 27. Qxe6 {[%clk 00:09:12]} {[%emt
00:01:20]} Nxe6 {[%clk 00:04:22]} {[%emt 00:00:03]} 28. Ne2 {[%clk 00:09:02]}
{[%emt 00:00:15]} Nxg5 {[%clk 00:04:22]} {[%emt 00:00:05]} 29. fxg5 {[%clk
00:09:06]} {[%emt 00:00:02]} Nc8 {[%clk 00:03:52]} {[%emt 00:00:35]} 30. Nd3
{[%clk 00:09:04]} {[%emt 00:00:07]} Nb6 {[%clk 00:03:48]} {[%emt 00:00:09]} 31.
Nef4 {[%clk 00:09:06]} {[%emt 00:00:02]} Nd7 {[%clk 00:03:46]} {[%emt
00:00:07]} 32. h4 {[%clk 00:09:09]} {[%emt 00:00:02]} Kg7 {[%clk 00:03:38]}
{[%emt 00:00:14]} 33. Kf2 {[%clk 00:09:13]} Nf8 {[%clk 00:03:31]} {[%emt
00:00:12]} 34. h5 {[%clk 00:09:11]} {[%emt 00:00:07]} Ne6 {[%clk 00:03:20]}
{[%emt 00:00:17]} 35. g3 {[%clk 00:08:59]} {[%emt 00:00:16]} Nxf4 {[%clk
00:03:23]} {[%emt 00:00:02]} 36. gxf4 {[%clk 00:09:02]} {[%emt 00:00:02]} Rec8
{[%clk 00:03:06]} {[%emt 00:00:23]} 37. Ne5 {[%clk 00:08:52]} {[%emt 00:00:14]}
Bxe5 {[%clk 00:03:04]} {[%emt 00:00:08]} 38. h6+ {[%clk 00:08:54]} {[%emt
00:00:02]} Kf7 {[%clk 00:03:07]} {[%emt 00:00:01]} 39. fxe5 {[%clk 00:07:51]}
{[%emt 00:01:08]} Ke6 {[%clk 00:03:08]} {[%emt 00:00:05]} 40. Kg3 {[%clk
00:07:32]} {[%emt 00:00:24]} c5 {[%clk 00:03:12]} {[%emt 00:00:02]} 41. Bc3
{[%clk 00:07:32]} {[%emt 00:00:03]} cxd4 {[%clk 00:03:05]} {[%emt 00:00:14]} 42.
Bxd4 {[%clk 00:07:35]} {[%emt 00:00:02]} Rc2 {[%clk 00:03:06]} {[%emt
00:00:04]} 43. Rb1 {[%clk 00:07:28]} {[%emt 00:00:12]} Rc7 {[%clk 00:01:23]}
{[%emt 00:01:49]} 44. b4 {[%clk 00:07:27]} {[%emt 00:00:05]} axb4 {[%clk
00:01:27]} {[%emt 00:00:01]} 45. Rxb4 {[%clk 00:07:30]} {[%emt 00:00:02]} Ra6
{[%clk 00:01:31]} {[%emt 00:00:01]} 46. Kf4 {[%clk 00:07:00]} {[%emt 00:00:34]}
b6 {[%clk 00:01:14]} {[%emt 00:00:23]} 47. Kf3 {[%emt 00:00:32]} Rc6 48. Kf4
{[%clk 00:06:30]} {[%emt 00:00:07]} Rc4 {[%clk 00:01:16]} {[%emt 00:00:08]} 49.
Rb5 {[%clk 00:05:24]} {[%emt 00:01:11]} Rcxa4 {[%clk 00:01:18]} {[%emt
00:00:03]} 50. Kf3 {[%clk 00:05:23]} {[%emt 00:00:06]} R4a5 {[%clk 00:01:18]}
{[%emt 00:00:05]} 51. Rb1 {[%clk 00:05:15]} {[%emt 00:00:12]} b5 {[%clk
00:00:47]} {[%emt 00:00:38]} 52. Rc1 {[%clk 00:05:19]} {[%emt 00:00:01]} Kd7
{[%clk 00:00:43]} {[%emt 00:00:09]} 53. Rc5 {[%clk 00:05:02]} {[%emt 00:00:21]}
b4 {[%clk 00:00:44]} {[%emt 00:00:04]} 54. e6+ {[%clk 00:04:35]} {[%emt
00:00:33]} Kxe6 {[%clk 00:00:46]} {[%emt 00:00:02]} 55. Rc8 {[%clk 00:04:28]}
{[%emt 00:00:11]} Rd6 {[%clk 00:00:31]} {[%emt 00:00:21]} 56. Rb8 {[%clk
00:04:26]} {[%emt 00:00:07]} Ra4 {[%clk 00:00:28]} {[%emt 00:00:09]} 57. Rb7
{[%clk 00:03:53]} {[%emt 00:00:38]} Rd7 {[%clk 00:00:32]} {[%emt 00:00:01]} 58.
Rb6+ {[%clk 00:03:56]} {[%emt 00:00:01]} Ke7 {[%clk 00:00:28]} {[%emt
00:00:08]} 59. Kf4 {[%clk 00:03:54]} {[%emt 00:00:08]} Ke8 {[%clk 00:00:24]}
{[%emt 00:00:10]} 60. Rb8+ {[%clk 00:03:47]} {[%emt 00:00:11]} Rd8 {[%clk
00:00:27]} {[%emt 00:00:03]} 61. Rb7 {[%clk 00:03:50]} {[%emt 00:00:01]} Rd7
{[%clk 00:00:31]} 62. Rb6 {[%clk 00:03:31]} {[%emt 00:00:25]} Ra8 {[%clk
00:00:19]} {[%emt 00:00:17]} 63. Rxb4 {[%clk 00:03:31]} {[%emt 00:00:06]} Rc8
{[%clk 00:00:23]} 64. Rb6 {[%clk 00:03:29]} {[%emt 00:00:06]} Re7 {[%clk
00:00:18]} {[%emt 00:00:11]} 65. Rd6 {[%clk 00:03:22]} {[%emt 00:00:12]} Re4+
{[%clk 00:00:22]} {[%emt 00:00:01]} 66. Kf3 {[%clk 00:03:23]} {[%emt 00:00:03]}
Rd8 {[%clk 00:00:25]} {[%emt 00:00:03]} 67. Rb6 {[%clk 00:03:09]} {[%emt
00:00:18]} Rg4 {[%clk 00:00:27]} {[%emt 00:00:04]} 68. Bf6 {[%clk 00:03:05]}
{[%emt 00:00:08]} Rd7 {[%clk 00:00:30]} {[%emt 00:00:03]} 69. Rb8+ {[%clk
00:03:05]} {[%emt 00:00:04]} Kf7 {[%clk 00:00:35]} {[%emt 00:00:04]} 70. Rh8
{[%clk 00:02:58]} {[%emt 00:00:09]} Ke6 {[%clk 00:00:39]} {[%emt 00:00:01]} 71.
Re8+ {[%clk 00:02:45]} {[%emt 00:00:18]} Kd6 {[%clk 00:00:43]} {[%emt
00:00:01]} 72. Rg8 {[%clk 00:02:47]} {[%emt 00:00:02]} Rh4 {[%clk 00:00:33]}
{[%emt 00:00:16]} 73. Rg7 {[%clk 00:02:36]} {[%emt 00:00:16]} Ke6 {[%clk
00:00:38]} 74. Rg8 {[%clk 00:02:29]} {[%emt 00:00:13]} Rh3+ {[%clk 00:00:27]}
{[%emt 00:00:15]} 75. Kf2 {[%clk 00:02:25]} {[%emt 00:00:08]} f4 {[%clk
00:00:27]} {[%emt 00:00:06]} 76. exf4 {[%clk 00:02:17]} {[%emt 00:00:12]} d4
{[%clk 00:00:32]} {[%emt 00:00:01]} 77. Re8+ {[%clk 00:02:08]} {[%emt
00:00:14]} Kf5 {[%clk 00:00:34]} {[%emt 00:00:04]} 78. Be5 {[%clk 00:01:52]}
{[%emt 00:00:20]} d3 {[%clk 00:00:36]} {[%emt 00:00:03]} 0-1

[Event "SS Manhem Chess Week 2019 Goteborg Open"]
[Site "Molnlycke kulturhus, Biblioteksgatan 2, Molnlycke, Sweden"]
[Date "2019.08.16"]
[Round "3.17"]
[White "Lacko, Pavel"]
[Black "Westerlund, Ola"]
[Result "0-1"]
[TimeControl "15 minutes + 5 seconds per move from move one (Round 1 - 4) / 90 minutes + 30 seconds per move from move one (Round 5 - 8)"]
[WhiteFideId "1701274"]
[BlackFideId "1712101"]
[WhiteElo "2081"]
[BlackElo "1845"]

1. Nf3 {[%clk 00:15:08]} {[%emt 00:03:43]} d6 {[%clk 00:15:08]} {[%emt
00:00:03]} 2. d4 {[%clk 00:15:07]} {[%emt 00:00:06]} f5 {[%clk 00:15:10]}
{[%emt 00:00:03]} 3. g3 {[%clk 00:15:07]} {[%emt 00:00:05]} Nf6 {[%clk
00:15:14]} {[%emt 00:00:01]} 4. Bg2 {[%clk 00:15:11]} {[%emt 00:00:01]} e6
{[%clk 00:15:10]} {[%emt 00:00:08]} 5. c4 {[%clk 00:15:12]} {[%emt 00:00:04]}
Be7 {[%clk 00:15:14]} {[%emt 00:00:01]} 6. Nc3 {[%clk 00:15:14]} {[%emt
00:00:02]} O-O {[%clk 00:15:17]} {[%emt 00:00:03]} 7. O-O {[%clk 00:15:16]}
{[%emt 00:00:03]} a5 {[%clk 00:14:42]} {[%emt 00:00:40]} 8. Qc2 {[%clk
00:15:10]} {[%emt 00:00:11]} Nc6 {[%clk 00:14:44]} {[%emt 00:00:02]} 9. a3
{[%clk 00:14:49]} {[%emt 00:00:26]} e5 {[%clk 00:14:27]} {[%emt 00:00:22]} 10.
d5 {[%clk 00:13:55]} {[%emt 00:01:00]} Nb8 {[%clk 00:14:31]} {[%emt 00:00:01]}
11. Rb1 {[%clk 00:13:50]} {[%emt 00:00:09]} Qe8 {[%clk 00:13:48]} {[%emt
00:00:48]} 12. b4 {[%clk 00:13:47]} {[%emt 00:00:09]} Qh5 {[%clk 00:13:11]}
{[%emt 00:00:42]} 13. e3 {[%clk 00:12:36]} {[%emt 00:01:15]} f4 {[%clk
00:12:26]} {[%emt 00:00:50]} 14. exf4 {[%clk 00:12:29]} {[%emt 00:00:12]} Bf5
{[%clk 00:12:26]} {[%emt 00:00:05]} 15. Qb3 {[%clk 00:12:06]} {[%emt 00:00:27]}
a4 {[%clk 00:12:07]} {[%emt 00:00:25]} 16. Qb2 {[%clk 00:11:51]} {[%emt
00:00:20]} Bxb1 {[%clk 00:11:50]} {[%emt 00:00:21]} 17. Qxb1 {[%clk 00:11:54]}
{[%emt 00:00:02]} Nbd7 {[%clk 00:11:00]} {[%emt 00:00:56]} 18. Re1 {[%clk
00:10:34]} {[%emt 00:01:25]} Nb6 {[%clk 00:09:20]} {[%emt 00:01:46]} 19. Qa2
{[%clk 00:10:22]} {[%emt 00:00:17]} Kh8 {[%clk 00:08:51]} {[%emt 00:00:34]} 20.
fxe5 {[%clk 00:09:48]} {[%emt 00:00:38]} Ng4 {[%clk 00:08:47]} {[%emt
00:00:09]} 21. exd6 {[%clk 00:07:28]} {[%emt 00:02:26]} Bxd6 {[%clk 00:06:34]}
{[%emt 00:02:18]} 22. h3 {[%clk 00:05:09]} {[%emt 00:02:23]} Ne5 {[%clk
00:06:19]} {[%emt 00:00:20]} 23. Nxe5 {[%clk 00:04:51]} {[%emt 00:00:24]} Bxe5
{[%clk 00:06:23]} {[%emt 00:00:01]} 24. Ne4 {[%clk 00:04:29]} {[%emt 00:00:26]}
Rae8 {[%clk 00:04:46]} {[%emt 00:01:42]} 25. Ng5 {[%clk 00:03:58]} {[%emt
00:00:36]} Bd4 {[%clk 00:04:34]} {[%emt 00:00:18]} 26. Rxe8 {[%clk 00:03:55]}
{[%emt 00:00:07]} Rxe8 {[%clk 00:03:51]} {[%emt 00:00:47]} 27. Ne6 {[%clk
00:03:54]} {[%emt 00:00:07]} Qd1+ {[%clk 00:03:52]} {[%emt 00:00:05]} 28. Kh2
{[%clk 00:03:45]} {[%emt 00:00:14]} Qxc1 {[%clk 00:03:55]} {[%emt 00:00:02]} 29.
Nxd4 {[%clk 00:03:41]} {[%emt 00:00:08]} Qxc4 {[%clk 00:03:27]} {[%emt
00:00:34]} 30. Qd2 {[%clk 00:01:56]} {[%emt 00:01:49]} Nxd5 {[%clk 00:03:13]}
{[%emt 00:00:20]} 31. Nf5 {[%clk 00:01:49]} {[%emt 00:00:13]} Nf6 {[%clk
00:02:52]} {[%emt 00:00:25]} 32. Qg5 {[%clk 00:01:38]} {[%emt 00:00:15]} Qf7
{[%clk 00:02:03]} {[%emt 00:00:54]} 33. Bxb7 {[%clk 00:01:39]} {[%emt
00:00:05]} Ne4 {[%clk 00:00:59]} {[%emt 00:01:08]} 34. Qf4 {[%clk 00:01:08]}
{[%emt 00:00:36]} Nd6 {[%clk 00:00:47]} {[%emt 00:00:17]} 35. Nxd6 {[%clk
00:01:05]} {[%emt 00:00:08]} Qxf4 {[%clk 00:00:51]} {[%emt 00:00:01]} 36. gxf4
{[%clk 00:01:08]} {[%emt 00:00:02]} cxd6 {[%clk 00:00:55]} {[%emt 00:00:01]} 37.
Bc6 {[%clk 00:01:07]} {[%emt 00:00:06]} Re2 {[%clk 00:00:59]} 38. Kg3 {[%clk
00:01:11]} {[%emt 00:00:02]} Ra2 {[%clk 00:01:00]} {[%emt 00:00:04]} 39. b5
{[%clk 00:01:14]} {[%emt 00:00:01]} Rxa3+ {[%clk 00:01:02]} {[%emt 00:00:03]}
40. Kg4 {[%clk 00:01:18]} Rb3 {[%clk 00:01:04]} {[%emt 00:00:02]} 41. Kf5
{[%clk 00:01:21]} {[%emt 00:00:02]} a3 {[%clk 00:01:06]} {[%emt 00:00:04]} 0-1